[Event "December 19 Early 2023"]
[Site "https://www.chess.com"]
[Date "2023.12.19"]
[Round "10"]
[White "Steinberg, Nitzan"]
[Black "Pakleza, Zbigniew"]
[Result "0-1"]
[Board "16"]
[TimeControl "180+1"]
[WhiteFideId "2801795"]
[BlackFideId "1119290"]
[WhiteElo "2486"]
[BlackElo "2410"]
[WhiteTeam "ISR"]
[BlackTeam "POL"]
[WhiteClock "0:00:00"]
[BlackClock "0:00:14"]

1. e4 {[%clk 0:02:56]}  d6 {[%clk 0:03:00]} 2. d4 {[%clk 0:02:55]}  Nf6 {[%clk 0:03:01]} 3. Nc3 {[%clk 0:02:54]}  c6 {[%clk 0:03:01]} 4. f4 {[%clk 0:02:50]}  Qb6 {[%clk 0:03:01]} 5. Nf3 {[%clk 0:02:50]}  Bg4 {[%clk 0:03:00]} 6. Be2 {[%clk 0:02:49]}  Bxf3 {[%clk 0:03:01]} 7. Bxf3 {[%clk 0:02:49]}  e5 {[%clk 0:03:01]} 8. fxe5 {[%clk 0:02:39]}  dxe5 {[%clk 0:03:02]} 9. dxe5 {[%clk 0:02:37]}  Nfd7 {[%clk 0:03:02]} 10. e6 {[%clk 0:02:38]}  fxe6 {[%clk 0:03:03]} 11. Bg4 {[%clk 0:02:31]}  Na6 {[%clk 0:03:03]} 12. Bxe6 {[%clk 0:02:09]}  O-O-O {[%clk 0:03:02]} 13. Bg5 {[%clk 0:01:59]}  Qxb2 {[%clk 0:03:01]} 14. O-O {[%clk 0:01:17]}  Qxc3 {[%clk 0:02:45]} 15. Bxd8 {[%clk 0:01:15]}  Bc5+ {[%clk 0:02:45]} 16. Kh1 {[%clk 0:01:15]}  Rxd8 {[%clk 0:02:45]} 17. Rf7 {[%clk 0:01:15]}  Bd4 {[%clk 0:02:29]} 18. Rb1 {[%clk 0:01:15]}  Nc5 {[%clk 0:02:28]} 19. Bf5 {[%clk 0:00:46]}  g6 {[%clk 0:02:26]} 20. Bg4 {[%clk 0:00:46]}  h5 {[%clk 0:02:22]} 21. Bh3 {[%clk 0:00:44]}  Qc4 {[%clk 0:00:50]} 22. Re7 {[%clk 0:00:33]}  Kb8 {[%clk 0:00:37]} 23. e5 {[%clk 0:00:20]}  Ne4 {[%clk 0:00:30]} 24. Qf3 {[%clk 0:00:10]}  Nf2+ {[%clk 0:00:23]} 25. Kg1 {[%clk 0:00:10]}  Nxh3+ {[%clk 0:00:22]} 26. Kh1 {[%clk 0:00:10]}  Nf2+ {[%clk 0:00:22]} 27. Kg1 {[%clk 0:00:11]}  Ne4+ {[%clk 0:00:15]} 28. Kh1 {[%clk 0:00:11]}  Nd2 {[%clk 0:00:16]} 29. Qa3 {[%clk 0:00:04]}  Nxb1 {[%clk 0:00:13]} 30. Qd6+ {[%clk 0:00:00]}  Kc8 {[%clk 0:00:14]} 0-1

[Event "December 19 Early 2023"]
[Site "https://www.chess.com"]
[Date "2023.12.19"]
[Round "10"]
[White "Jones, Gawain C B"]
[Black "Yaran, Siar"]
[Result "0-1"]
[Board "18"]
[TimeControl "180+1"]
[WhiteFideId "409561"]
[BlackFideId "6323006"]
[WhiteElo "2645"]
[BlackElo "2191"]
[WhiteTeam "ENG"]
[BlackTeam "TUR"]
[WhiteClock "0:00:11"]
[BlackClock "0:00:43"]

1. a3 {[%clk 0:03:00]}  d5 {[%clk 0:02:54]} 2. Nf3 {[%clk 0:03:00]}  Nf6 {[%clk 0:02:53]} 3. b4 {[%clk 0:02:58]}  e6 {[%clk 0:02:43]} 4. Bb2 {[%clk 0:02:58]}  Bd6 {[%clk 0:02:43]} 5. e3 {[%clk 0:02:58]}  O-O {[%clk 0:02:43]} 6. c4 {[%clk 0:02:58]}  c6 {[%clk 0:02:43]} 7. Qc2 {[%clk 0:02:58]}  Nbd7 {[%clk 0:02:43]} 8. Nc3 {[%clk 0:02:57]}  a6 {[%clk 0:02:42]} 9. d4 {[%clk 0:02:49]}  Qe7 {[%clk 0:02:41]} 10. Bd3 {[%clk 0:02:44]}  e5 {[%clk 0:02:22]} 11. c5 {[%clk 0:02:32]}  Bc7 {[%clk 0:02:21]} 12. dxe5 {[%clk 0:02:33]}  Nxe5 {[%clk 0:02:22]} 13. Nxe5 {[%clk 0:02:32]}  Bxe5 {[%clk 0:02:22]} 14. Ne2 {[%clk 0:02:31]}  Bc7 {[%clk 0:02:20]} 15. h3 {[%clk 0:02:23]}  Re8 {[%clk 0:02:15]} 16. O-O {[%clk 0:02:14]}  h5 {[%clk 0:02:05]} 17. Nd4 {[%clk 0:02:08]}  Ne4 {[%clk 0:02:01]} 18. Nf3 {[%clk 0:02:05]}  Bf5 {[%clk 0:01:54]} 19. Nd2 {[%clk 0:01:45]}  Rad8 {[%clk 0:01:36]} 20. Bxe4 {[%clk 0:01:40]}  dxe4 {[%clk 0:01:33]} 21. Rfd1 {[%clk 0:01:24]}  Qg5 {[%clk 0:01:29]} 22. Kf1 {[%clk 0:01:24]}  Re6 {[%clk 0:01:20]} 23. Nc4 {[%clk 0:01:10]}  Rd3 {[%clk 0:01:19]} 24. Rxd3 {[%clk 0:00:57]}  exd3 {[%clk 0:01:20]} 25. Qd2 {[%clk 0:00:57]}  Rg6 {[%clk 0:01:14]} 26. f4 {[%clk 0:00:57]}  Qg3 {[%clk 0:01:11]} 27. Qf2 {[%clk 0:00:51]}  Qh2 {[%clk 0:01:09]} 28. Qg1 {[%clk 0:00:22]}  Rxg2 {[%clk 0:00:58]} 29. Qxh2 {[%clk 0:00:21]}  Rxh2 {[%clk 0:00:59]} 30. Kg1 {[%clk 0:00:18]}  Re2 {[%clk 0:00:55]} 31. Rd1 {[%clk 0:00:15]}  Be6 {[%clk 0:00:51]} 32. Be5 {[%clk 0:00:12]}  Bxc4 {[%clk 0:00:42]} 33. Bxc7 {[%clk 0:00:12]}  d2 {[%clk 0:00:43]} 34. Kf1 {[%clk 0:00:11]}  Re1+ {[%clk 0:00:43]} 0-1

[Event "December 19 Early 2023"]
[Site "https://www.chess.com"]
[Date "2023.12.19"]
[Round "10"]
[White "Rozman, Levy"]
[Black "Pranav, V"]
[Result "0-1"]
[Board "25"]
[TimeControl "180+1"]
[WhiteFideId "2039877"]
[BlackFideId "25060783"]
[WhiteElo "2376"]
[BlackElo "2562"]
[WhiteTeam "USA"]
[BlackTeam "IND"]
[WhiteClock "0:00:02"]
[BlackClock "0:00:42"]

1. e4 {[%clk 0:02:51]}  e5 {[%clk 0:02:58]} 2. Nc3 {[%clk 0:02:51]}  Nf6 {[%clk 0:02:57]} 3. f4 {[%clk 0:02:50]}  d5 {[%clk 0:02:57]} 4. fxe5 {[%clk 0:02:50]}  Nxe4 {[%clk 0:02:57]} 5. Qf3 {[%clk 0:02:51]}  f5 {[%clk 0:02:57]} 6. d3 {[%clk 0:02:51]}  Nxc3 {[%clk 0:02:57]} 7. bxc3 {[%clk 0:02:52]}  d4 {[%clk 0:02:57]} 8. Qg3 {[%clk 0:02:52]}  Nc6 {[%clk 0:02:54]} 9. Be2 {[%clk 0:02:52]}  g6 {[%clk 0:02:46]} 10. Rb1 {[%clk 0:02:29]}  dxc3 {[%clk 0:02:44]} 11. h4 {[%clk 0:02:15]}  Nd4 {[%clk 0:02:38]} 12. Bd1 {[%clk 0:02:13]}  Rg8 {[%clk 0:02:31]} 13. Nf3 {[%clk 0:02:05]}  Ne6 {[%clk 0:02:23]} 14. Be3 {[%clk 0:01:51]}  Qd5 {[%clk 0:02:21]} 15. O-O {[%clk 0:01:43]}  Bd7 {[%clk 0:02:17]} 16. Rb3 {[%clk 0:01:27]}  Bc5 {[%clk 0:02:03]} 17. Qf2 {[%clk 0:01:24]}  Bxe3 {[%clk 0:01:36]} 18. Qxe3 {[%clk 0:01:24]}  f4 {[%clk 0:01:37]} 19. Qf2 {[%clk 0:01:15]}  Bc6 {[%clk 0:01:36]} 20. Rxc3 {[%clk 0:01:09]}  h6 {[%clk 0:01:32]} 21. Re1 {[%clk 0:00:47]}  Rd8 {[%clk 0:01:28]} 22. Nd2 {[%clk 0:00:43]}  Qd4 {[%clk 0:01:22]} 23. Rc4 {[%clk 0:00:39]}  Qxf2+ {[%clk 0:01:18]} 24. Kxf2 {[%clk 0:00:40]}  Ke7 {[%clk 0:01:16]} 25. Bf3 {[%clk 0:00:34]}  Bxf3 {[%clk 0:01:04]} 26. Nxf3 {[%clk 0:00:31]}  Rd5 {[%clk 0:01:01]} 27. Rb4 {[%clk 0:00:27]}  b6 {[%clk 0:01:01]} 28. Ra4 {[%clk 0:00:27]}  a5 {[%clk 0:01:00]} 29. Rc4 {[%clk 0:00:25]}  g5 {[%clk 0:01:00]} 30. hxg5 {[%clk 0:00:23]}  hxg5 {[%clk 0:01:01]} 31. Rh1 {[%clk 0:00:20]}  g4 {[%clk 0:00:56]} 32. Rh7+ {[%clk 0:00:19]}  Kd8 {[%clk 0:00:56]} 33. Nd2 {[%clk 0:00:07]}  g3+ {[%clk 0:00:46]} 34. Kf1 {[%clk 0:00:06]}  Rxe5 {[%clk 0:00:44]} 35. Ne4 {[%clk 0:00:06]}  Rb5 {[%clk 0:00:43]} 36. Nf6 {[%clk 0:00:02]}  f3 {[%clk 0:00:42]} 37. Nxg8 {[%clk 0:00:02]}  Rb1# {[%clk 0:00:42]} 0-1

[Event "December 19 Early 2023"]
[Site "https://www.chess.com"]
[Date "2023.12.19"]
[Round "10"]
[White "Ter-Sahakyan, Samvel"]
[Black "Gubajdullin, Alexei"]
[Result "1-0"]
[Board "27"]
[TimeControl "180+1"]
[WhiteFideId "13302531"]
[BlackFideId "4141202"]
[WhiteElo "2556"]
[BlackElo "2274"]
[WhiteTeam "ARM"]
[BlackTeam "RUS"]
[WhiteClock "0:00:05"]
[BlackClock "0:00:00"]

1. e4 {[%clk 0:02:59]}  e5 {[%clk 0:02:57]} 2. Nf3 {[%clk 0:02:59]}  Nf6 {[%clk 0:02:57]} 3. Nxe5 {[%clk 0:02:58]}  d6 {[%clk 0:02:57]} 4. Nf3 {[%clk 0:02:58]}  Nxe4 {[%clk 0:02:57]} 5. d4 {[%clk 0:02:58]}  d5 {[%clk 0:02:58]} 6. Bd3 {[%clk 0:02:59]}  Nc6 {[%clk 0:02:57]} 7. O-O {[%clk 0:02:58]}  Be7 {[%clk 0:02:57]} 8. Nbd2 {[%clk 0:02:56]}  Nxd2 {[%clk 0:02:55]} 9. Bxd2 {[%clk 0:02:55]}  Bg4 {[%clk 0:02:55]} 10. c3 {[%clk 0:02:55]}  O-O {[%clk 0:02:55]} 11. h3 {[%clk 0:02:54]}  Bh5 {[%clk 0:02:55]} 12. g3 {[%clk 0:02:55]}  Qd7 {[%clk 0:02:43]} 13. Kg2 {[%clk 0:02:55]}  Rae8 {[%clk 0:02:42]} 14. Qc2 {[%clk 0:02:40]}  h6 {[%clk 0:02:28]} 15. Bf5 {[%clk 0:02:25]}  Qd8 {[%clk 0:02:24]} 16. Rae1 {[%clk 0:02:17]}  Bf6 {[%clk 0:02:08]} 17. Qd3 {[%clk 0:02:13]}  Ne7 {[%clk 0:02:05]} 18. Bh7+ {[%clk 0:02:03]}  Kh8 {[%clk 0:02:05]} 19. g4 {[%clk 0:02:03]}  Bg6 {[%clk 0:02:01]} 20. Bxg6 {[%clk 0:02:03]}  Nxg6 {[%clk 0:01:59]} 21. Qf5 {[%clk 0:01:51]}  c6 {[%clk 0:01:48]} 22. Bf4 {[%clk 0:01:38]}  Rxe1 {[%clk 0:01:34]} 23. Rxe1 {[%clk 0:01:38]}  Kg8 {[%clk 0:01:11]} 24. Bg3 {[%clk 0:01:34]}  Re8 {[%clk 0:01:10]} 25. Rxe8+ {[%clk 0:01:32]}  Qxe8 {[%clk 0:01:10]} 26. h4 {[%clk 0:01:30]}  Qe6 {[%clk 0:01:04]} 27. Qxe6 {[%clk 0:01:26]}  fxe6 {[%clk 0:01:04]} 28. h5 {[%clk 0:01:26]}  Nf8 {[%clk 0:01:01]} 29. Bd6 {[%clk 0:01:18]}  Nd7 {[%clk 0:01:00]} 30. Ne5 {[%clk 0:01:12]}  Nxe5 {[%clk 0:00:51]} 31. dxe5 {[%clk 0:01:12]}  Bg5 {[%clk 0:00:50]} 32. Kg3 {[%clk 0:00:55]}  Bc1 {[%clk 0:00:49]} 33. b3 {[%clk 0:00:55]}  b5 {[%clk 0:00:49]} 34. Bc5 {[%clk 0:00:23]}  a6 {[%clk 0:00:42]} 35. b4 {[%clk 0:00:18]}  Bd2 {[%clk 0:00:36]} 36. Bd4 {[%clk 0:00:18]}  Kf7 {[%clk 0:00:33]} 37. f4 {[%clk 0:00:18]}  g6 {[%clk 0:00:30]} 38. hxg6+ {[%clk 0:00:12]}  Kxg6 {[%clk 0:00:29]} 39. Kf3 {[%clk 0:00:12]}  h5 {[%clk 0:00:23]} 40. gxh5+ {[%clk 0:00:11]}  Kxh5 {[%clk 0:00:23]} 41. f5 {[%clk 0:00:05]}  exf5 {[%clk 0:00:20]} 42. e6 {[%clk 0:00:06]}  Kg6 {[%clk 0:00:20]} 43. Kg3 {[%clk 0:00:04]}  Bg5 {[%clk 0:00:19]} 44. Kf3 {[%clk 0:00:05]}  Bf6 {[%clk 0:00:19]} 45. Kf4 {[%clk 0:00:04]}  Bd8 {[%clk 0:00:06]} 46. Be5 {[%clk 0:00:03]}  Be7 {[%clk 0:00:05]} 47. Bd4 {[%clk 0:00:03]}  Bd6+ {[%clk 0:00:05]} 48. Kf3 {[%clk 0:00:04]}  Be7 {[%clk 0:00:05]} 49. Kf4 {[%clk 0:00:04]}  Bd6+ {[%clk 0:00:05]} 50. Kf3 {[%clk 0:00:04]}  f4 {[%clk 0:00:05]} 51. Kg4 {[%clk 0:00:05]}  f3 {[%clk 0:00:04]} 52. Kxf3 {[%clk 0:00:04]}  Kf5 {[%clk 0:00:04]} 53. Ke3 {[%clk 0:00:04]}  Kxe6 {[%clk 0:00:04]} 54. Kd3 {[%clk 0:00:05]}  Kf5 {[%clk 0:00:04]} 55. Be3 {[%clk 0:00:05]}  Be5 {[%clk 0:00:04]} 56. Bd4 {[%clk 0:00:05]}  Kf4 {[%clk 0:00:03]} 57. Bc5 {[%clk 0:00:04]}  Kf3 {[%clk 0:00:03]} 58. Bb6 {[%clk 0:00:04]}  Kf4 {[%clk 0:00:03]} 59. Bc5 {[%clk 0:00:05]}  Kf5 {[%clk 0:00:03]} 60. Be3 {[%clk 0:00:04]}  Bf6 {[%clk 0:00:03]} 61. Bc5 {[%clk 0:00:04]}  Ke6 {[%clk 0:00:03]} 62. Be3 {[%clk 0:00:04]}  Be5 {[%clk 0:00:03]} 63. Bc5 {[%clk 0:00:04]}  Kf5 {[%clk 0:00:03]} 64. Be3 {[%clk 0:00:05]}  Kg4 {[%clk 0:00:03]} 65. Bd4 {[%clk 0:00:04]}  Bd6 {[%clk 0:00:03]} 66. Be3 {[%clk 0:00:05]}  Kf3 {[%clk 0:00:03]} 67. Bd4 {[%clk 0:00:05]}  Kg2 {[%clk 0:00:03]} 68. Ke2 {[%clk 0:00:06]}  Bf4 {[%clk 0:00:00]} 69. Bf6 {[%clk 0:00:05]} 1-0

[Event "December 19 Early 2023"]
[Site "https://www.chess.com"]
[Date "2023.12.19"]
[Round "10"]
[White "Yeletsky, Ivan"]
[Black "Al-Tarboush, Ward"]
[Result "1-0"]
[Board "31"]
[TimeControl "180+1"]
[WhiteFideId "24180327"]
[BlackFideId "7601450"]
[WhiteElo "2379"]
[BlackElo "2278"]
[WhiteTeam "RUS"]
[BlackTeam "NOR"]
[WhiteClock "0:01:47"]
[BlackClock "0:00:00"]

1. d4 {[%clk 0:03:00]}  Nf6 {[%clk 0:01:37]} 2. c4 {[%clk 0:02:59]}  b6 {[%clk 0:01:37]} 3. f3 {[%clk 0:02:59]}  Nc6 {[%clk 0:01:33]} 4. Nc3 {[%clk 0:02:58]}  d5 {[%clk 0:01:31]} 5. Qa4 {[%clk 0:02:45]}  Qd7 {[%clk 0:01:29]} 6. cxd5 {[%clk 0:02:41]}  Nxd5 {[%clk 0:01:30]} 7. Nxd5 {[%clk 0:02:30]}  Qxd5 {[%clk 0:01:31]} 8. e4 {[%clk 0:02:31]}  Qd7 {[%clk 0:01:28]} 9. Bb5 {[%clk 0:02:29]}  Bb7 {[%clk 0:00:53]} 10. d5 {[%clk 0:02:29]}  Qd6 {[%clk 0:00:21]} 11. Ne2 {[%clk 0:02:18]}  e6 {[%clk 0:00:12]} 12. Bxc6+ {[%clk 0:02:09]}  Bxc6 {[%clk 0:00:11]} 13. Qxc6+ {[%clk 0:02:10]}  Qxc6 {[%clk 0:00:12]} 14. dxc6 {[%clk 0:02:11]}  O-O-O {[%clk 0:00:12]} 15. Be3 {[%clk 0:02:09]}  Bb4+ {[%clk 0:00:11]} 16. Kf2 {[%clk 0:02:09]}  Rd6 {[%clk 0:00:11]} 17. Rhc1 {[%clk 0:02:08]}  Rhd8 {[%clk 0:00:12]} 18. a3 {[%clk 0:02:09]}  Bd2 {[%clk 0:00:11]} 19. Rc2 {[%clk 0:02:05]}  Bxe3+ {[%clk 0:00:10]} 20. Kxe3 {[%clk 0:02:06]}  Rd3+ {[%clk 0:00:10]} 21. Kf2 {[%clk 0:02:06]}  e5 {[%clk 0:00:09]} 22. h4 {[%clk 0:02:03]}  R8d6 {[%clk 0:00:08]} 23. Rac1 {[%clk 0:01:58]}  a5 {[%clk 0:00:05]} 24. Nc3 {[%clk 0:01:58]}  Rd2+ {[%clk 0:00:04]} 25. Kg1 {[%clk 0:01:54]}  Kb8 {[%clk 0:00:03]} 26. Nd5 {[%clk 0:01:52]}  Rxc2 {[%clk 0:00:02]} 27. Rxc2 {[%clk 0:01:53]}  f5 {[%clk 0:00:02]} 28. Kf2 {[%clk 0:01:48]}  g6 {[%clk 0:00:00]} 29. g4 {[%clk 0:01:47]} 1-0

[Event "December 19 Early 2023"]
[Site "https://www.chess.com"]
[Date "2023.12.19"]
[Round "10"]
[White "Manukian, Artak"]
[Black "Postny, Evgeny"]
[Result "1-0"]
[Board "33"]
[TimeControl "180+1"]
[WhiteFideId "13301373"]
[BlackFideId "2804344"]
[WhiteElo "2030"]
[BlackElo "2505"]
[WhiteTeam "ARM"]
[BlackTeam "ISR"]
[WhiteClock "0:01:31"]
[BlackClock "0:00:07"]

1. e4 {[%clk 0:02:55]}  e5 {[%clk 0:02:58]} 2. Nf3 {[%clk 0:02:55]}  Nc6 {[%clk 0:02:58]} 3. d4 {[%clk 0:02:54]}  exd4 {[%clk 0:02:58]} 4. Nxd4 {[%clk 0:02:55]}  Nf6 {[%clk 0:02:58]} 5. Nxc6 {[%clk 0:02:55]}  bxc6 {[%clk 0:02:58]} 6. e5 {[%clk 0:02:56]}  Qe7 {[%clk 0:02:57]} 7. Qe2 {[%clk 0:02:55]}  Nd5 {[%clk 0:02:58]} 8. c4 {[%clk 0:02:56]}  Ba6 {[%clk 0:02:57]} 9. b3 {[%clk 0:02:57]}  O-O-O {[%clk 0:02:56]} 10. g3 {[%clk 0:02:56]}  f6 {[%clk 0:02:53]} 11. e6 {[%clk 0:02:55]}  dxe6 {[%clk 0:02:51]} 12. Bh3 {[%clk 0:02:53]}  f5 {[%clk 0:02:45]} 13. O-O {[%clk 0:02:50]}  Nf6 {[%clk 0:02:36]} 14. Ba3 {[%clk 0:02:40]}  Qd7 {[%clk 0:02:32]} 15. Bxf8 {[%clk 0:02:36]}  Rhxf8 {[%clk 0:02:33]} 16. Nc3 {[%clk 0:02:34]}  Bb7 {[%clk 0:02:31]} 17. Na4 {[%clk 0:02:29]}  Ne4 {[%clk 0:02:13]} 18. Bg2 {[%clk 0:02:27]}  Qd2 {[%clk 0:02:02]} 19. Rfe1 {[%clk 0:02:26]}  Qxe2 {[%clk 0:01:32]} 20. Rxe2 {[%clk 0:02:27]}  c5 {[%clk 0:01:18]} 21. Bxe4 {[%clk 0:02:24]}  Bxe4 {[%clk 0:01:16]} 22. Nxc5 {[%clk 0:02:24]}  Bf3 {[%clk 0:01:14]} 23. Re3 {[%clk 0:02:17]}  Rd1+ {[%clk 0:01:11]} 24. Rxd1 {[%clk 0:02:16]}  Bxd1 {[%clk 0:01:12]} 25. Nxe6 {[%clk 0:02:16]}  Rf7 {[%clk 0:01:09]} 26. f4 {[%clk 0:02:13]}  Bc2 {[%clk 0:01:01]} 27. Kf2 {[%clk 0:02:12]}  Bb1 {[%clk 0:01:00]} 28. a4 {[%clk 0:02:11]}  c6 {[%clk 0:00:44]} 29. Nc5 {[%clk 0:02:07]}  Kc7 {[%clk 0:00:41]} 30. a5 {[%clk 0:02:04]}  g6 {[%clk 0:00:39]} 31. Re6 {[%clk 0:01:54]}  Bc2 {[%clk 0:00:33]} 32. Ke3 {[%clk 0:01:53]}  Bd1 {[%clk 0:00:32]} 33. Kd4 {[%clk 0:01:52]}  Bf3 {[%clk 0:00:29]} 34. Ke5 {[%clk 0:01:51]}  Bg2 {[%clk 0:00:26]} 35. h4 {[%clk 0:01:51]}  Bf3 {[%clk 0:00:25]} 36. b4 {[%clk 0:01:49]}  Be2 {[%clk 0:00:23]} 37. Kd4 {[%clk 0:01:49]}  Bf1 {[%clk 0:00:23]} 38. Kc3 {[%clk 0:01:49]}  Rg7 {[%clk 0:00:19]} 39. Nb3 {[%clk 0:01:48]}  Rd7 {[%clk 0:00:18]} 40. Nd4 {[%clk 0:01:48]}  Bg2 {[%clk 0:00:17]} 41. h5 {[%clk 0:01:38]}  Rg7 {[%clk 0:00:11]} 42. Re2 {[%clk 0:01:31]}  Be4 {[%clk 0:00:07]} 43. Ne6+ {[%clk 0:01:31]} 1-0

[Event "December 19 Early 2023"]
[Site "https://www.chess.com"]
[Date "2023.12.19"]
[Round "10"]
[White "Vlassov, Nikolai"]
[Black "Deac, Bogdan-Daniel"]
[Result "0-1"]
[Board "39"]
[TimeControl "180+1"]
[WhiteFideId "4103360"]
[BlackFideId "1226380"]
[WhiteElo "2351"]
[BlackElo "2641"]
[WhiteTeam "FID"]
[BlackTeam "ROU"]
[WhiteClock "0:00:00"]
[BlackClock "0:00:08"]

1. e4 {[%clk 0:03:00]}  c6 {[%clk 0:02:59]} 2. d4 {[%clk 0:02:59]}  d5 {[%clk 0:03:00]} 3. e5 {[%clk 0:03:00]}  Bf5 {[%clk 0:03:00]} 4. Nc3 {[%clk 0:02:58]}  e6 {[%clk 0:03:00]} 5. g4 {[%clk 0:02:58]}  Bg6 {[%clk 0:03:01]} 6. Nge2 {[%clk 0:02:48]}  c5 {[%clk 0:02:47]} 7. Be3 {[%clk 0:02:47]}  Nd7 {[%clk 0:02:39]} 8. f4 {[%clk 0:02:36]}  Ne7 {[%clk 0:02:20]} 9. Bg2 {[%clk 0:02:35]}  Nc6 {[%clk 0:02:16]} 10. O-O {[%clk 0:02:28]}  cxd4 {[%clk 0:02:16]} 11. Nxd4 {[%clk 0:02:28]}  Bc5 {[%clk 0:02:16]} 12. f5 {[%clk 0:02:25]}  Ndxe5 {[%clk 0:02:07]} 13. fxg6 {[%clk 0:02:18]}  hxg6 {[%clk 0:02:07]} 14. h3 {[%clk 0:01:47]}  Nc4 {[%clk 0:02:01]} 15. Bf2 {[%clk 0:01:42]}  Nxd4 {[%clk 0:02:01]} 16. Bxd4 {[%clk 0:01:42]}  Qb6 {[%clk 0:02:02]} 17. Ne2 {[%clk 0:01:34]}  Nxb2 {[%clk 0:01:50]} 18. Qd2 {[%clk 0:01:31]}  Nc4 {[%clk 0:01:49]} 19. Qc3 {[%clk 0:01:29]}  Bxd4+ {[%clk 0:01:45]} 20. Qxd4 {[%clk 0:01:27]}  Ne3 {[%clk 0:01:45]} 21. Rfb1 {[%clk 0:01:11]}  Nxc2 {[%clk 0:01:19]} 22. Rxb6 {[%clk 0:00:56]}  Nxd4 {[%clk 0:01:19]} 23. Rb2 {[%clk 0:00:54]}  Nxe2+ {[%clk 0:01:18]} 24. Rxe2 {[%clk 0:00:55]}  Kd7 {[%clk 0:01:10]} 25. Rf1 {[%clk 0:00:49]}  Raf8 {[%clk 0:01:06]} 26. Rc2 {[%clk 0:00:44]}  g5 {[%clk 0:01:04]} 27. Rb1 {[%clk 0:00:39]}  b6 {[%clk 0:00:57]} 28. Bf1 {[%clk 0:00:40]}  Rc8 {[%clk 0:00:56]} 29. Bb5+ {[%clk 0:00:36]}  Ke7 {[%clk 0:00:56]} 30. Rbc1 {[%clk 0:00:36]}  Rxc2 {[%clk 0:00:13]} 31. Rxc2 {[%clk 0:00:36]}  Rxh3 {[%clk 0:00:11]} 32. Rc7+ {[%clk 0:00:27]}  Kf6 {[%clk 0:00:11]} 33. Be8 {[%clk 0:00:21]}  Ra3 {[%clk 0:00:10]} 34. Rxf7+ {[%clk 0:00:20]}  Ke5 {[%clk 0:00:11]} 35. Rxg7 {[%clk 0:00:21]}  Kf4 {[%clk 0:00:11]} 36. Bh5 {[%clk 0:00:19]}  Rxa2 {[%clk 0:00:09]} 37. Rf7+ {[%clk 0:00:19]}  Kg3 {[%clk 0:00:09]} 38. Kf1 {[%clk 0:00:19]}  d4 {[%clk 0:00:10]} 39. Rg7 {[%clk 0:00:18]}  Kf4 {[%clk 0:00:08]} 40. Rf7+ {[%clk 0:00:18]}  Kg3 {[%clk 0:00:07]} 41. Rf6 {[%clk 0:00:15]}  e5 {[%clk 0:00:07]} 42. Re6 {[%clk 0:00:13]}  Kf4 {[%clk 0:00:06]} 43. Rf6+ {[%clk 0:00:13]}  Ke3 {[%clk 0:00:07]} 44. Rf5 {[%clk 0:00:13]}  e4 {[%clk 0:00:07]} 45. Rxg5 {[%clk 0:00:13]}  d3 {[%clk 0:00:07]} 46. Rd5 {[%clk 0:00:13]}  Rf2+ {[%clk 0:00:06]} 47. Kg1 {[%clk 0:00:13]}  Rf4 {[%clk 0:00:06]} 48. g5 {[%clk 0:00:13]}  Rf8 {[%clk 0:00:05]} 49. g6 {[%clk 0:00:13]}  a5 {[%clk 0:00:05]} 50. Bg4 {[%clk 0:00:08]}  Kd2 {[%clk 0:00:04]} 51. g7 {[%clk 0:00:05]}  Rg8 {[%clk 0:00:04]} 52. Rd7 {[%clk 0:00:06]}  e3 {[%clk 0:00:04]} 53. Bf5 {[%clk 0:00:06]}  Rxg7+ {[%clk 0:00:04]} 54. Rxg7 {[%clk 0:00:05]}  e2 {[%clk 0:00:05]} 55. Re7 {[%clk 0:00:04]}  e1=Q+ {[%clk 0:00:04]} 56. Rxe1 {[%clk 0:00:04]}  Kxe1 {[%clk 0:00:05]} 57. Bxd3 {[%clk 0:00:05]}  a4 {[%clk 0:00:05]} 58. Bc4 {[%clk 0:00:03]}  a3 {[%clk 0:00:06]} 59. Kg2 {[%clk 0:00:03]}  b5 {[%clk 0:00:06]} 60. Bg8 {[%clk 0:00:02]}  b4 {[%clk 0:00:06]} 61. Kf3 {[%clk 0:00:02]}  Kd2 {[%clk 0:00:07]} 62. Ke4 {[%clk 0:00:01]}  Kc3 {[%clk 0:00:07]} 63. Ke3 {[%clk 0:00:00]}  b3 {[%clk 0:00:08]} 0-1

[Event "December 19 Early 2023"]
[Site "https://www.chess.com"]
[Date "2023.12.19"]
[Round "10"]
[White "Ivic, Velimir"]
[Black "Kavyev, Ruslan"]
[Result "0-1"]
[Board "40"]
[TimeControl "180+1"]
[WhiteFideId "950122"]
[BlackFideId "34110981"]
[WhiteElo "2542"]
[BlackElo "2336"]
[WhiteTeam "SRB"]
[BlackTeam "RUS"]
[WhiteClock "0:00:03"]
[BlackClock "0:00:26"]

1. e4 {[%clk 0:03:00]}  c5 {[%clk 0:02:56]} 2. Nf3 {[%clk 0:02:58]}  d6 {[%clk 0:02:54]} 3. Bc4 {[%clk 0:02:59]}  Nf6 {[%clk 0:02:53]} 4. d3 {[%clk 0:02:59]}  e6 {[%clk 0:02:53]} 5. O-O {[%clk 0:02:59]}  Be7 {[%clk 0:02:54]} 6. Re1 {[%clk 0:03:00]}  O-O {[%clk 0:02:54]} 7. c3 {[%clk 0:03:00]}  Nc6 {[%clk 0:02:54]} 8. Bb3 {[%clk 0:03:00]}  a6 {[%clk 0:02:53]} 9. d4 {[%clk 0:03:00]}  cxd4 {[%clk 0:02:51]} 10. cxd4 {[%clk 0:02:59]}  b5 {[%clk 0:02:52]} 11. a3 {[%clk 0:02:55]}  Bb7 {[%clk 0:02:51]} 12. Nc3 {[%clk 0:02:55]}  Na5 {[%clk 0:02:51]} 13. Bc2 {[%clk 0:02:55]}  Rc8 {[%clk 0:02:50]} 14. Qd3 {[%clk 0:02:50]}  Nc4 {[%clk 0:02:42]} 15. b3 {[%clk 0:02:30]}  Nb6 {[%clk 0:02:34]} 16. Bg5 {[%clk 0:02:30]}  Nh5 {[%clk 0:02:28]} 17. Bd2 {[%clk 0:02:13]}  Nf6 {[%clk 0:02:18]} 18. d5 {[%clk 0:01:49]}  e5 {[%clk 0:02:13]} 19. a4 {[%clk 0:01:37]}  b4 {[%clk 0:02:11]} 20. Nd1 {[%clk 0:01:19]}  a5 {[%clk 0:02:11]} 21. Ne3 {[%clk 0:01:20]}  Nbd7 {[%clk 0:02:08]} 22. Nf5 {[%clk 0:01:14]}  Nc5 {[%clk 0:02:07]} 23. Qe3 {[%clk 0:01:15]}  g6 {[%clk 0:02:01]} 24. Nxe7+ {[%clk 0:01:09]}  Qxe7 {[%clk 0:02:02]} 25. Rac1 {[%clk 0:01:08]}  Ng4 {[%clk 0:01:55]} 26. Qg5 {[%clk 0:00:55]}  Qxg5 {[%clk 0:01:54]} 27. Bxg5 {[%clk 0:00:55]}  f6 {[%clk 0:01:39]} 28. Bd2 {[%clk 0:00:47]}  Kg7 {[%clk 0:01:38]} 29. h3 {[%clk 0:00:44]}  Nh6 {[%clk 0:01:38]} 30. Be3 {[%clk 0:00:42]}  Ba6 {[%clk 0:01:36]} 31. Nd2 {[%clk 0:00:41]}  Nf7 {[%clk 0:01:21]} 32. Bb1 {[%clk 0:00:37]}  Nd8 {[%clk 0:01:10]} 33. Bxc5 {[%clk 0:00:22]}  Rxc5 {[%clk 0:01:07]} 34. Rxc5 {[%clk 0:00:21]}  dxc5 {[%clk 0:01:08]} 35. Rc1 {[%clk 0:00:21]}  Nb7 {[%clk 0:01:08]} 36. f3 {[%clk 0:00:21]}  Rc8 {[%clk 0:01:07]} 37. Kf2 {[%clk 0:00:22]}  Nd6 {[%clk 0:01:07]} 38. Ke3 {[%clk 0:00:22]}  c4 {[%clk 0:01:05]} 39. bxc4 {[%clk 0:00:23]}  Nxc4+ {[%clk 0:01:04]} 40. Nxc4 {[%clk 0:00:22]}  Rxc4 {[%clk 0:01:04]} 41. Rxc4 {[%clk 0:00:18]}  Bxc4 {[%clk 0:01:05]} 42. Bd3 {[%clk 0:00:17]}  Bb3 {[%clk 0:00:46]} 43. Bb5 {[%clk 0:00:18]}  Kf7 {[%clk 0:00:44]} 44. g3 {[%clk 0:00:17]}  Ke7 {[%clk 0:00:43]} 45. f4 {[%clk 0:00:16]}  g5 {[%clk 0:00:42]} 46. fxg5 {[%clk 0:00:14]}  fxg5 {[%clk 0:00:42]} 47. h4 {[%clk 0:00:14]}  h6 {[%clk 0:00:42]} 48. Kd3 {[%clk 0:00:14]}  Kd6 {[%clk 0:00:42]} 49. Be8 {[%clk 0:00:13]}  Kc5 {[%clk 0:00:41]} 50. Bb5 {[%clk 0:00:13]}  Bd1 {[%clk 0:00:39]} 51. Kd2 {[%clk 0:00:13]}  Bf3 {[%clk 0:00:38]} 52. Kd3 {[%clk 0:00:13]}  Bg2 {[%clk 0:00:39]} 53. hxg5 {[%clk 0:00:11]}  hxg5 {[%clk 0:00:34]} 54. Be8 {[%clk 0:00:12]}  Bf1+ {[%clk 0:00:32]} 55. Kd2 {[%clk 0:00:11]}  Bh3 {[%clk 0:00:30]} 56. Bb5 {[%clk 0:00:10]}  Bg2 {[%clk 0:00:29]} 57. Kd3 {[%clk 0:00:10]}  b3 {[%clk 0:00:26]} 58. Bc4 {[%clk 0:00:04]}  Bf1+ {[%clk 0:00:25]} 59. Kc3 {[%clk 0:00:03]}  Bxc4 {[%clk 0:00:26]} 0-1